[Event "Titled Tuesday Blitz November 07 Late 2023"]
[White "Deac, Bogdan-Daniel"]
[Black "Kozak, Antoni"]
[WhiteFideId "1226380"]
[BlackFideId "21832030"]
[WhiteElo "2978"]
[BlackElo "2811"]
[Result "1-0"]
[Round "5"]
[TimeControl "180+1"]
[Date "2023.11.07"]
[WhiteClock "0:00:05"]
[BlackClock "0:00:02"]
[Board "10"]

1. b3 {[%clk 0:03:00]}  b6 {[%clk 0:02:57]} 2. Bb2 {[%clk 0:03:01]}  Bb7 {[%clk 0:02:57]} 3. Nf3 {[%clk 0:02:59]}  Nf6 {[%clk 0:02:56]} 4. c4 {[%clk 0:02:59]}  g6 {[%clk 0:02:55]} 5. g3 {[%clk 0:02:57]}  Bg7 {[%clk 0:02:56]} 6. Bg2 {[%clk 0:02:57]}  O-O {[%clk 0:02:57]} 7. O-O {[%clk 0:02:57]}  e6 {[%clk 0:02:57]} 8. Nc3 {[%clk 0:02:56]}  Nc6 {[%clk 0:02:49]} 9. d4 {[%clk 0:02:55]}  Ne7 {[%clk 0:02:49]} 10. Rc1 {[%clk 0:02:53]}  Ne4 {[%clk 0:02:48]} 11. Nxe4 {[%clk 0:02:50]}  Bxe4 {[%clk 0:02:47]} 12. Qd2 {[%clk 0:02:51]}  Qc8 {[%clk 0:02:42]} 13. Rfd1 {[%clk 0:02:38]}  Qb7 {[%clk 0:02:39]} 14. d5 {[%clk 0:02:10]}  Bxb2 {[%clk 0:02:16]} 15. Qxb2 {[%clk 0:02:10]}  exd5 {[%clk 0:01:33]} 16. Ne5 {[%clk 0:02:08]}  Bxg2 {[%clk 0:01:28]} 17. Kxg2 {[%clk 0:01:20]}  d4+ {[%clk 0:00:36]} 18. Kg1 {[%clk 0:01:13]}  c5 {[%clk 0:00:36]} 19. e3 {[%clk 0:01:12]}  Nf5 {[%clk 0:00:33]} 20. exd4 {[%clk 0:01:07]}  Nxd4 {[%clk 0:00:32]} 21. Rxd4 {[%clk 0:01:07]}  cxd4 {[%clk 0:00:33]} 22. Qxd4 {[%clk 0:01:07]}  h5 {[%clk 0:00:18]} 23. Nxd7 {[%clk 0:01:01]}  Rfd8 {[%clk 0:00:18]} 24. Nf6+ {[%clk 0:00:59]}  Kf8 {[%clk 0:00:18]} 25. Nd5 {[%clk 0:00:56]}  Kg8 {[%clk 0:00:16]} 26. Re1 {[%clk 0:00:51]}  Rd6 {[%clk 0:00:04]} 27. Nf6+ {[%clk 0:00:47]}  Rxf6 {[%clk 0:00:04]} 28. Qxf6 {[%clk 0:00:47]}  Rf8 {[%clk 0:00:02]} 29. Re7 {[%clk 0:00:42]}  Qa6 {[%clk 0:00:02]} 30. a4 {[%clk 0:00:39]}  Qa5 {[%clk 0:00:03]} 31. Kg2 {[%clk 0:00:35]}  Qb4 {[%clk 0:00:03]} 32. Re3 {[%clk 0:00:30]}  a6 {[%clk 0:00:03]} 33. h4 {[%clk 0:00:26]}  Qc5 {[%clk 0:00:01]} 34. Qe5 {[%clk 0:00:08]}  Rc8 {[%clk 0:00:02]} 35. Qe4 {[%clk 0:00:04]}  b5 {[%clk 0:00:02]} 36. cxb5 {[%clk 0:00:03]}  axb5 {[%clk 0:00:03]} 37. Qb7 {[%clk 0:00:03]}  bxa4 {[%clk 0:00:02]} 38. bxa4 {[%clk 0:00:04]}  Qc1 {[%clk 0:00:02]} 39. a5 {[%clk 0:00:03]}  Rc2 {[%clk 0:00:02]} 40. Qa8+ {[%clk 0:00:02]}  Kg7 {[%clk 0:00:02]} 41. Re8 {[%clk 0:00:03]}  Qd2 {[%clk 0:00:02]} 42. Rg8+ {[%clk 0:00:03]}  Kf6 {[%clk 0:00:02]} 43. Qf3+ {[%clk 0:00:03]}  Ke7 {[%clk 0:00:02]} 44. Ra8 {[%clk 0:00:03]}  Qc3 {[%clk 0:00:02]} 45. Ra7+ {[%clk 0:00:03]}  Ke6 {[%clk 0:00:02]} 46. Rxf7 {[%clk 0:00:03]}  Qxf3+ {[%clk 0:00:02]} 47. Rxf3 {[%clk 0:00:03]}  Ra2 {[%clk 0:00:03]} 48. Rf4 {[%clk 0:00:03]}  Rxa5 {[%clk 0:00:03]} 49. Rf8 {[%clk 0:00:03]}  Rd5 {[%clk 0:00:03]} 50. Rf4 {[%clk 0:00:03]}  Ke7 {[%clk 0:00:04]} 51. Kf3 {[%clk 0:00:03]}  Rc5 {[%clk 0:00:04]} 52. Ke4 {[%clk 0:00:03]}  Ke6 {[%clk 0:00:05]} 53. Kd4 {[%clk 0:00:03]}  Ra5 {[%clk 0:00:05]} 54. Kc3 {[%clk 0:00:03]}  Ra3+ {[%clk 0:00:05]} 55. Kb4 {[%clk 0:00:03]}  Ra2 {[%clk 0:00:06]} 56. Kc5 {[%clk 0:00:03]}  Rc2+ {[%clk 0:00:06]} 57. Kb5 {[%clk 0:00:03]}  Ra2 {[%clk 0:00:07]} 58. Kc6 {[%clk 0:00:02]}  Rb2 {[%clk 0:00:07]} 59. Kc7 {[%clk 0:00:03]}  Rc2+ {[%clk 0:00:08]} 60. Kd8 {[%clk 0:00:03]}  Rb2 {[%clk 0:00:09]} 61. Rf3 {[%clk 0:00:02]}  Ke5 {[%clk 0:00:09]} 62. Ke7 {[%clk 0:00:02]}  Rb7+ {[%clk 0:00:08]} 63. Kf8 {[%clk 0:00:02]}  Ke6 {[%clk 0:00:09]} 64. Rf4 {[%clk 0:00:02]}  Rc7 {[%clk 0:00:10]} 65. Kg8 {[%clk 0:00:02]}  Rb7 {[%clk 0:00:10]} 66. Rf8 {[%clk 0:00:02]}  Rc7 {[%clk 0:00:10]} 67. f3 {[%clk 0:00:03]}  Rd7 {[%clk 0:00:10]} 68. Rf4 {[%clk 0:00:03]}  Rc7 {[%clk 0:00:10]} 69. g4 {[%clk 0:00:03]}  hxg4 {[%clk 0:00:11]} 70. fxg4 {[%clk 0:00:04]}  Rb7 {[%clk 0:00:11]} 71. g5 {[%clk 0:00:04]}  Ke7 {[%clk 0:00:03]} 72. Rf7+ {[%clk 0:00:04]}  Ke8 {[%clk 0:00:02]} 73. Rxb7 {[%clk 0:00:05]} 1-0


[Site "https://www.chess.com"]

[Event "Titled Tuesday Blitz November 07 Late 2023"]
[White "Holt, Conrad"]
[Black "Elsa167"]
[WhiteFideId "2034387"]
[WhiteElo "2811"]
[BlackElo "2977"]
[Result "0-1"]
[Round "5"]
[TimeControl "180+1"]
[Date "2023.11.07"]
[WhiteClock "0:00:00"]
[BlackClock "0:00:04"]
[Board "11"]

1. d4 {[%clk 0:02:58]}  Nf6 {[%clk 0:02:57]} 2. c4 {[%clk 0:02:59]}  g6 {[%clk 0:02:58]} 3. Nc3 {[%clk 0:02:58]}  Bg7 {[%clk 0:02:58]} 4. e4 {[%clk 0:02:58]}  d6 {[%clk 0:02:59]} 5. Nf3 {[%clk 0:02:59]}  Bg4 {[%clk 0:02:59]} 6. Be2 {[%clk 0:02:58]}  Bxf3 {[%clk 0:02:59]} 7. Bxf3 {[%clk 0:02:59]}  e5 {[%clk 0:02:59]} 8. d5 {[%clk 0:02:47]}  h5 {[%clk 0:02:59]} 9. O-O {[%clk 0:02:42]}  Nbd7 {[%clk 0:02:58]} 10. Be2 {[%clk 0:02:42]}  a5 {[%clk 0:02:49]} 11. g3 {[%clk 0:02:29]}  h4 {[%clk 0:02:48]} 12. Bg5 {[%clk 0:02:24]}  hxg3 {[%clk 0:02:41]} 13. fxg3 {[%clk 0:02:14]}  Bh6 {[%clk 0:02:27]} 14. Qd2 {[%clk 0:02:05]}  Bxg5 {[%clk 0:02:24]} 15. Qxg5 {[%clk 0:02:06]}  Qe7 {[%clk 0:02:10]} 16. Nb5 {[%clk 0:01:54]}  Rc8 {[%clk 0:01:43]} 17. Bf3 {[%clk 0:01:11]}  Nxd5 {[%clk 0:01:35]} 18. Qxe7+ {[%clk 0:01:11]}  Nxe7 {[%clk 0:01:35]} 19. Bg4 {[%clk 0:01:12]}  Rf8 {[%clk 0:01:26]} 20. Na7 {[%clk 0:01:01]}  Rb8 {[%clk 0:01:21]} 21. Nb5 {[%clk 0:01:01]}  Kd8 {[%clk 0:01:12]} 22. Bxd7 {[%clk 0:00:32]}  Kxd7 {[%clk 0:01:12]} 23. Rf6 {[%clk 0:00:30]}  Ng8 {[%clk 0:01:05]} 24. Rf3 {[%clk 0:00:30]}  c6 {[%clk 0:00:50]} 25. Nc3 {[%clk 0:00:29]}  Ke6 {[%clk 0:00:48]} 26. Rd1 {[%clk 0:00:20]}  f5 {[%clk 0:00:44]} 27. Rfd3 {[%clk 0:00:20]}  Rfd8 {[%clk 0:00:23]} 28. c5 {[%clk 0:00:18]}  d5 {[%clk 0:00:22]} 29. exd5+ {[%clk 0:00:18]}  cxd5 {[%clk 0:00:23]} 30. Nxd5 {[%clk 0:00:18]}  Kf7 {[%clk 0:00:22]} 31. Nb6 {[%clk 0:00:16]}  Rxd3 {[%clk 0:00:22]} 32. Rxd3 {[%clk 0:00:17]}  Nf6 {[%clk 0:00:22]} 33. Rd6 {[%clk 0:00:16]}  Re8 {[%clk 0:00:15]} 34. a3 {[%clk 0:00:14]}  e4 {[%clk 0:00:15]} 35. Kf1 {[%clk 0:00:14]}  g5 {[%clk 0:00:15]} 36. Nd7 {[%clk 0:00:11]}  Ng4 {[%clk 0:00:09]} 37. h3 {[%clk 0:00:10]}  Ne3+ {[%clk 0:00:09]} 38. Ke2 {[%clk 0:00:10]}  f4 {[%clk 0:00:06]} 39. gxf4 {[%clk 0:00:09]}  gxf4 {[%clk 0:00:07]} 40. Rf6+ {[%clk 0:00:09]}  Ke7 {[%clk 0:00:07]} 41. Rxf4 {[%clk 0:00:09]}  Nd5 {[%clk 0:00:07]} 42. Rf5 {[%clk 0:00:09]}  Kxd7 {[%clk 0:00:03]} 43. Rxd5+ {[%clk 0:00:08]}  Kc6 {[%clk 0:00:04]} 44. Rh5 {[%clk 0:00:09]}  Rg8 {[%clk 0:00:04]} 45. Ke3 {[%clk 0:00:09]}  Rg2 {[%clk 0:00:05]} 46. Kxe4 {[%clk 0:00:10]}  Rxb2 {[%clk 0:00:05]} 47. h4 {[%clk 0:00:09]}  Rb3 {[%clk 0:00:05]} 48. Rh7 {[%clk 0:00:09]}  Rxa3 {[%clk 0:00:05]} 49. h5 {[%clk 0:00:09]}  Rb3 {[%clk 0:00:05]} 50. Kd4 {[%clk 0:00:10]}  Rb4+ {[%clk 0:00:05]} 51. Kc3 {[%clk 0:00:10]}  Kxc5 {[%clk 0:00:05]} 52. h6 {[%clk 0:00:10]}  Kb6 {[%clk 0:00:04]} 53. Rf7 {[%clk 0:00:09]}  Rh4 {[%clk 0:00:04]} 54. h7 {[%clk 0:00:10]}  Ka6 {[%clk 0:00:05]} 55. Kb3 {[%clk 0:00:10]}  b6 {[%clk 0:00:05]} 56. Ka3 {[%clk 0:00:09]}  a4 {[%clk 0:00:04]} 57. Rg7 {[%clk 0:00:08]}  Ka5 {[%clk 0:00:04]} 58. Ra7+ {[%clk 0:00:07]}  Kb5 {[%clk 0:00:05]} 59. Rg7 {[%clk 0:00:07]}  Rh3+ {[%clk 0:00:05]} 60. Ka2 {[%clk 0:00:08]}  Ka5 {[%clk 0:00:04]} 61. Ra7+ {[%clk 0:00:07]}  Kb4 {[%clk 0:00:05]} 62. Rg7 {[%clk 0:00:06]}  Rh2+ {[%clk 0:00:05]} 63. Kb1 {[%clk 0:00:07]}  b5 {[%clk 0:00:05]} 64. Rg4+ {[%clk 0:00:07]}  Ka5 {[%clk 0:00:05]} 65. Rg7 {[%clk 0:00:07]}  a3 {[%clk 0:00:05]} 66. Ka1 {[%clk 0:00:06]}  Ka4 {[%clk 0:00:05]} 67. Kb1 {[%clk 0:00:06]}  b4 {[%clk 0:00:05]} 68. Rf7 {[%clk 0:00:02]}  Rh1+ {[%clk 0:00:05]} 69. Kc2 {[%clk 0:00:02]}  b3+ {[%clk 0:00:05]} 70. Kc3 {[%clk 0:00:02]}  Rh3+ {[%clk 0:00:06]} 71. Kc4 {[%clk 0:00:02]}  Rh4+ {[%clk 0:00:06]} 72. Kc3 {[%clk 0:00:03]}  b2 {[%clk 0:00:05]} 73. Ra7+ {[%clk 0:00:03]}  Kb5 {[%clk 0:00:06]} 74. Rb7+ {[%clk 0:00:02]}  Kc6 {[%clk 0:00:05]} 75. Rb8 {[%clk 0:00:02]}  Rxh7 {[%clk 0:00:04]} 76. Kc2 {[%clk 0:00:02]}  Rh2+ {[%clk 0:00:04]} 77. Kc3 {[%clk 0:00:02]}  Rh1 {[%clk 0:00:04]} 78. Rc8+ {[%clk 0:00:00]}  Kb7 {[%clk 0:00:04]} 0-1


[Site "https://www.chess.com"]

[Event "Titled Tuesday Blitz November 07 Late 2023"]
[White "Hakobyan, Aram"]
[Black "Troff, Kayden"]
[WhiteFideId "13306677"]
[BlackFideId "2047896"]
[WhiteElo "3053"]
[BlackElo "2807"]
[Result "1-0"]
[Round "5"]
[TimeControl "180+1"]
[Date "2023.11.07"]
[WhiteClock "0:00:05"]
[BlackClock "0:00:10"]
[Board "13"]

1. e4 {[%clk 0:03:00]}  c5 {[%clk 0:02:57]} 2. Nc3 {[%clk 0:03:01]}  g6 {[%clk 0:02:57]} 3. Bc4 {[%clk 0:03:01]}  Bg7 {[%clk 0:02:56]} 4. h4 {[%clk 0:03:01]}  h6 {[%clk 0:02:52]} 5. d3 {[%clk 0:03:01]}  d6 {[%clk 0:02:29]} 6. h5 {[%clk 0:03:01]}  g5 {[%clk 0:02:29]} 7. f4 {[%clk 0:03:01]}  gxf4 {[%clk 0:02:30]} 8. Bxf4 {[%clk 0:03:02]}  Nc6 {[%clk 0:02:30]} 9. Nf3 {[%clk 0:02:59]}  Nf6 {[%clk 0:02:29]} 10. Qd2 {[%clk 0:02:54]}  Be6 {[%clk 0:02:12]} 11. Bxe6 {[%clk 0:02:12]}  fxe6 {[%clk 0:02:13]} 12. Nh4 {[%clk 0:02:12]}  Qb6 {[%clk 0:02:12]} 13. Ng6 {[%clk 0:02:10]}  Rh7 {[%clk 0:02:12]} 14. O-O-O {[%clk 0:01:52]}  O-O-O {[%clk 0:02:07]} 15. Rde1 {[%clk 0:01:39]}  Nd7 {[%clk 0:01:38]} 16. g4 {[%clk 0:00:56]}  Nde5 {[%clk 0:01:34]} 17. Nxe5 {[%clk 0:00:52]}  Nxe5 {[%clk 0:01:34]} 18. Qe2 {[%clk 0:00:49]}  Nc6 {[%clk 0:01:28]} 19. Bd2 {[%clk 0:00:49]}  Rhh8 {[%clk 0:01:24]} 20. Ref1 {[%clk 0:00:49]}  Rdf8 {[%clk 0:01:23]} 21. Rxf8+ {[%clk 0:00:46]}  Rxf8 {[%clk 0:01:22]} 22. Rf1 {[%clk 0:00:46]}  Qd8 {[%clk 0:01:22]} 23. a3 {[%clk 0:00:35]}  Nd4 {[%clk 0:01:20]} 24. Qg2 {[%clk 0:00:35]}  b5 {[%clk 0:01:16]} 25. Ne2 {[%clk 0:00:30]}  Nc6 {[%clk 0:00:48]} 26. Rxf8 {[%clk 0:00:26]}  Qxf8 {[%clk 0:00:48]} 27. g5 {[%clk 0:00:26]}  Kd7 {[%clk 0:00:43]} 28. g6 {[%clk 0:00:24]}  b4 {[%clk 0:00:42]} 29. axb4 {[%clk 0:00:22]}  cxb4 {[%clk 0:00:38]} 30. d4 {[%clk 0:00:19]}  Nxd4 {[%clk 0:00:35]} 31. Nxd4 {[%clk 0:00:20]}  Bxd4 {[%clk 0:00:36]} 32. Qe2 {[%clk 0:00:20]}  b3 {[%clk 0:00:26]} 33. Qb5+ {[%clk 0:00:18]}  Kc7 {[%clk 0:00:26]} 34. cxb3 {[%clk 0:00:17]}  Qf2 {[%clk 0:00:25]} 35. Ba5+ {[%clk 0:00:11]}  Bb6 {[%clk 0:00:25]} 36. Kb1 {[%clk 0:00:11]}  Qf3 {[%clk 0:00:23]} 37. Qc4+ {[%clk 0:00:06]}  Kd7 {[%clk 0:00:23]} 38. Qb5+ {[%clk 0:00:05]}  Kc7 {[%clk 0:00:23]} 39. Bxb6+ {[%clk 0:00:06]}  axb6 {[%clk 0:00:23]} 40. Qc4+ {[%clk 0:00:06]}  Kd7 {[%clk 0:00:24]} 41. Qa4+ {[%clk 0:00:07]}  Kc7 {[%clk 0:00:23]} 42. Qa7+ {[%clk 0:00:07]}  Kc8 {[%clk 0:00:20]} 43. Qa8+ {[%clk 0:00:07]}  Kc7 {[%clk 0:00:21]} 44. g7 {[%clk 0:00:04]}  Qxb3 {[%clk 0:00:15]} 45. g8=Q {[%clk 0:00:04]}  Qd3+ {[%clk 0:00:16]} 46. Ka1 {[%clk 0:00:04]}  Qf1+ {[%clk 0:00:16]} 47. Ka2 {[%clk 0:00:05]}  Qc4+ {[%clk 0:00:16]} 48. Ka3 {[%clk 0:00:05]}  Qd3+ {[%clk 0:00:10]} 49. b3 {[%clk 0:00:05]} 1-0


[Site "https://www.chess.com"]

[Event "Titled Tuesday Blitz November 07 Late 2023"]
[White "Drygalov, Andrey"]
[Black "Hasangatin, Ramil"]
[WhiteFideId "24171735"]
[BlackFideId "4122160"]
[WhiteElo "2974"]
[BlackElo "2702"]
[Result "1-0"]
[Round "5"]
[TimeControl "180+1"]
[Date "2023.11.07"]
[WhiteClock "0:01:17"]
[BlackClock "0:00:00"]
[Board "16"]

1. e4 {[%clk 0:03:00]}  d5 {[%clk 0:02:59]} 2. exd5 {[%clk 0:03:00]}  Qxd5 {[%clk 0:03:00]} 3. Nc3 {[%clk 0:03:01]}  Qd6 {[%clk 0:03:00]} 4. d4 {[%clk 0:03:01]}  Nf6 {[%clk 0:03:01]} 5. Nf3 {[%clk 0:03:02]}  c6 {[%clk 0:03:02]} 6. Ne5 {[%clk 0:03:02]}  Nbd7 {[%clk 0:03:02]} 7. Nc4 {[%clk 0:03:01]}  Qc7 {[%clk 0:03:02]} 8. Qf3 {[%clk 0:03:01]}  Nb6 {[%clk 0:03:02]} 9. Bf4 {[%clk 0:03:01]}  Qd8 {[%clk 0:03:03]} 10. Qd1 {[%clk 0:02:45]}  Be6 {[%clk 0:02:54]} 11. Ne5 {[%clk 0:02:43]}  g6 {[%clk 0:02:52]} 12. Be2 {[%clk 0:02:42]}  Bg7 {[%clk 0:02:52]} 13. O-O {[%clk 0:02:43]}  Nbd5 {[%clk 0:02:50]} 14. Nxd5 {[%clk 0:02:42]}  Nxd5 {[%clk 0:02:36]} 15. Bg3 {[%clk 0:02:42]}  O-O {[%clk 0:02:34]} 16. c3 {[%clk 0:02:42]}  Rc8 {[%clk 0:02:27]} 17. Bf3 {[%clk 0:02:38]}  Nb6 {[%clk 0:02:26]} 18. Re1 {[%clk 0:02:38]}  Re8 {[%clk 0:02:21]} 19. h3 {[%clk 0:02:37]}  Bd5 {[%clk 0:02:15]} 20. Bg4 {[%clk 0:02:37]}  e6 {[%clk 0:02:04]} 21. Nd3 {[%clk 0:02:37]}  Nd7 {[%clk 0:01:59]} 22. Qc2 {[%clk 0:02:31]}  Nf6 {[%clk 0:01:35]} 23. Be2 {[%clk 0:02:30]}  Be4 {[%clk 0:01:35]} 24. Rad1 {[%clk 0:02:29]}  Qb6 {[%clk 0:01:26]} 25. Qc1 {[%clk 0:02:25]}  Bxd3 {[%clk 0:01:22]} 26. Bxd3 {[%clk 0:02:25]}  Nd5 {[%clk 0:01:22]} 27. Be4 {[%clk 0:02:21]}  Qa5 {[%clk 0:01:21]} 28. a3 {[%clk 0:02:20]}  b5 {[%clk 0:01:21]} 29. Bd6 {[%clk 0:02:20]}  Bf8 {[%clk 0:01:18]} 30. Bxf8 {[%clk 0:02:20]}  Rxf8 {[%clk 0:01:17]} 31. h4 {[%clk 0:02:21]}  Nf6 {[%clk 0:01:12]} 32. Bf3 {[%clk 0:02:21]}  h5 {[%clk 0:01:08]} 33. Qh6 {[%clk 0:02:17]}  Qd8 {[%clk 0:01:07]} 34. Re5 {[%clk 0:02:16]}  Re8 {[%clk 0:01:00]} 35. g3 {[%clk 0:02:13]}  Qe7 {[%clk 0:00:58]} 36. Rde1 {[%clk 0:02:13]}  Qf8 {[%clk 0:00:58]} 37. Qf4 {[%clk 0:02:13]}  Nd5 {[%clk 0:00:52]} 38. Qd2 {[%clk 0:02:12]}  Qg7 {[%clk 0:00:50]} 39. Qe2 {[%clk 0:02:05]}  a6 {[%clk 0:00:44]} 40. Bxh5 {[%clk 0:02:00]}  c5 {[%clk 0:00:20]} 41. Bf3 {[%clk 0:02:00]}  Nb6 {[%clk 0:00:12]} 42. Rxc5 {[%clk 0:01:58]}  Rxc5 {[%clk 0:00:10]} 43. dxc5 {[%clk 0:01:59]}  Na4 {[%clk 0:00:11]} 44. c6 {[%clk 0:01:58]}  Rd8 {[%clk 0:00:10]} 45. Rd1 {[%clk 0:01:58]}  Qf6 {[%clk 0:00:11]} 46. c7 {[%clk 0:01:54]}  Rc8 {[%clk 0:00:10]} 47. Bb7 {[%clk 0:01:24]}  Rxc7 {[%clk 0:00:09]} 48. Bxa6 {[%clk 0:01:24]}  Nc5 {[%clk 0:00:04]} 49. Bxb5 {[%clk 0:01:24]}  e5 {[%clk 0:00:04]} 50. Bc4 {[%clk 0:01:24]}  e4 {[%clk 0:00:04]} 51. Bd5 {[%clk 0:01:24]}  Qe5 {[%clk 0:00:03]} 52. Qe3 {[%clk 0:01:22]}  Na4 {[%clk 0:00:02]} 53. Rd2 {[%clk 0:01:20]}  Rc5 {[%clk 0:00:02]} 54. Bb3 {[%clk 0:01:18]}  Nb6 {[%clk 0:00:00]} 55. Rd4 {[%clk 0:01:17]} 1-0


[Site "https://www.chess.com"]

[Event "Titled Tuesday Blitz November 07 Late 2023"]
[White "Koellner, Ruben Gideon"]
[Black "Makhnev, Denis"]
[WhiteFideId "12993093"]
[BlackFideId "13707647"]
[WhiteElo "2702"]
[BlackElo "2959"]
[Result "0-1"]
[Round "5"]
[TimeControl "180+1"]
[Date "2023.11.07"]
[WhiteClock "0:00:15"]
[BlackClock "0:00:07"]
[Board "17"]

1. d4 {[%clk 0:03:00]}  d5 {[%clk 0:02:59]} 2. Nf3 {[%clk 0:01:53]}  e6 {[%clk 0:02:59]} 3. e3 {[%clk 0:01:52]}  c5 {[%clk 0:02:46]} 4. c3 {[%clk 0:01:52]}  Nc6 {[%clk 0:02:46]} 5. Nbd2 {[%clk 0:01:53]}  Nf6 {[%clk 0:02:44]} 6. Bd3 {[%clk 0:01:53]}  Bd6 {[%clk 0:02:44]} 7. O-O {[%clk 0:01:53]}  O-O {[%clk 0:02:43]} 8. dxc5 {[%clk 0:01:53]}  Bxc5 {[%clk 0:02:44]} 9. b4 {[%clk 0:01:54]}  Bd6 {[%clk 0:02:41]} 10. Bb2 {[%clk 0:01:54]}  Qc7 {[%clk 0:02:33]} 11. a3 {[%clk 0:01:54]}  e5 {[%clk 0:02:09]} 12. e4 {[%clk 0:01:53]}  h6 {[%clk 0:02:08]} 13. Qe2 {[%clk 0:01:49]}  Be6 {[%clk 0:02:01]} 14. Rfe1 {[%clk 0:01:36]}  a6 {[%clk 0:02:00]} 15. Rad1 {[%clk 0:01:32]}  Rad8 {[%clk 0:01:58]} 16. g3 {[%clk 0:01:31]}  dxe4 {[%clk 0:01:11]} 17. Nxe4 {[%clk 0:01:30]}  Nxe4 {[%clk 0:01:11]} 18. Bxe4 {[%clk 0:01:26]}  Bg4 {[%clk 0:01:11]} 19. c4 {[%clk 0:01:21]}  f5 {[%clk 0:01:02]} 20. Bd5+ {[%clk 0:01:10]}  Kh7 {[%clk 0:01:02]} 21. h3 {[%clk 0:01:08]}  Bxf3 {[%clk 0:00:58]} 22. Qxf3 {[%clk 0:01:06]}  e4 {[%clk 0:00:58]} 23. Qb3 {[%clk 0:00:47]}  Ne5 {[%clk 0:00:53]} 24. Bxe5 {[%clk 0:00:38]}  Bxe5 {[%clk 0:00:54]} 25. c5 {[%clk 0:00:37]}  g6 {[%clk 0:00:49]} 26. Rd2 {[%clk 0:00:31]}  Rd7 {[%clk 0:00:32]} 27. Red1 {[%clk 0:00:29]}  Rfd8 {[%clk 0:00:32]} 28. Bg8+ {[%clk 0:00:27]}  Kg7 {[%clk 0:00:28]} 29. Rxd7+ {[%clk 0:00:21]}  Rxd7 {[%clk 0:00:29]} 30. Rxd7+ {[%clk 0:00:21]}  Qxd7 {[%clk 0:00:30]} 31. Qd5 {[%clk 0:00:19]}  Qc7 {[%clk 0:00:27]} 32. Kg2 {[%clk 0:00:11]}  h5 {[%clk 0:00:14]} 33. a4 {[%clk 0:00:08]}  e3 {[%clk 0:00:08]} 34. fxe3 {[%clk 0:00:08]}  Bxg3 {[%clk 0:00:08]} 35. b5 {[%clk 0:00:07]}  Bh4 {[%clk 0:00:08]} 36. Kf1 {[%clk 0:00:06]}  Qg3 {[%clk 0:00:06]} 37. Ke2 {[%clk 0:00:05]}  Qe1+ {[%clk 0:00:05]} 38. Kd3 {[%clk 0:00:06]}  Qd1+ {[%clk 0:00:05]} 39. Kc4 {[%clk 0:00:06]}  Qxa4+ {[%clk 0:00:05]} 40. Kc3 {[%clk 0:00:04]}  Bf6+ {[%clk 0:00:05]} 41. Kd2 {[%clk 0:00:04]}  Qb4+ {[%clk 0:00:04]} 42. Ke2 {[%clk 0:00:04]}  Qb2+ {[%clk 0:00:04]} 43. Kf3 {[%clk 0:00:03]}  axb5 {[%clk 0:00:04]} 44. Qf7+ {[%clk 0:00:03]}  Kh6 {[%clk 0:00:05]} 45. h4 {[%clk 0:00:02]}  Bg7 {[%clk 0:00:04]} 46. Qe6 {[%clk 0:00:01]}  Qf6 {[%clk 0:00:03]} 47. Qxf6 {[%clk 0:00:01]}  Bxf6 {[%clk 0:00:04]} 48. Bd5 {[%clk 0:00:02]}  Be7 {[%clk 0:00:03]} 49. Bxb7 {[%clk 0:00:02]}  Bxc5 {[%clk 0:00:04]} 50. Bc6 {[%clk 0:00:03]}  b4 {[%clk 0:00:04]} 51. Bd5 {[%clk 0:00:04]}  Be7 {[%clk 0:00:04]} 52. e4 {[%clk 0:00:04]}  fxe4+ {[%clk 0:00:04]} 53. Kxe4 {[%clk 0:00:04]}  Bxh4 {[%clk 0:00:05]} 54. Kd3 {[%clk 0:00:04]}  Be1 {[%clk 0:00:06]} 55. Kc4 {[%clk 0:00:05]}  Bc3 {[%clk 0:00:07]} 56. Kd3 {[%clk 0:00:05]}  g5 {[%clk 0:00:07]} 57. Ke4 {[%clk 0:00:06]}  g4 {[%clk 0:00:08]} 58. Kf5 {[%clk 0:00:06]}  Bd4 {[%clk 0:00:07]} 59. Bb3 {[%clk 0:00:06]}  g3 {[%clk 0:00:07]} 60. Ke4 {[%clk 0:00:06]}  g2 {[%clk 0:00:08]} 61. Kxd4 {[%clk 0:00:07]}  g1=Q+ {[%clk 0:00:08]} 62. Kc4 {[%clk 0:00:08]}  Qe1 {[%clk 0:00:09]} 63. Kb5 {[%clk 0:00:08]}  Qc3 {[%clk 0:00:10]} 64. Ka4 {[%clk 0:00:09]}  h4 {[%clk 0:00:10]} 65. Bd5 {[%clk 0:00:10]}  Qa3+ {[%clk 0:00:10]} 66. Kb5 {[%clk 0:00:10]}  b3 {[%clk 0:00:11]} 67. Kc4 {[%clk 0:00:10]}  b2 {[%clk 0:00:11]} 68. Be4 {[%clk 0:00:11]}  Qa4+ {[%clk 0:00:11]} 69. Kd5 {[%clk 0:00:12]}  h3 {[%clk 0:00:11]} 70. Bd3 {[%clk 0:00:12]}  h2 {[%clk 0:00:11]} 71. Ke6 {[%clk 0:00:13]}  h1=Q {[%clk 0:00:11]} 72. Bf5 {[%clk 0:00:14]}  Qhc6+ {[%clk 0:00:11]} 73. Kf7 {[%clk 0:00:15]}  Qa7+ {[%clk 0:00:11]} 74. Kg8 {[%clk 0:00:15]}  Qg7# {[%clk 0:00:07]} 0-1


[Site "https://www.chess.com"]